[Event "Asian Amateur-ch Women 2022"]
[Site "Muscat"]
[Date "2022.10.02"]
[Round "4.7"]
[White "Al Mansouri, Moza"]
[Black "Anoud Eisa Bashkardi"]
[Result "1-0"]
[ECO "C78"]
[WhiteElo "1610"]
[BlackElo "1277"]
[Annotator "NA RC COMBH"]
[PlyCount "73"]
[EventDate "2022.09.29"]
[EventType "swiss"]
[SourceTitle "playchess.com"]
[Source "ChessBase"]
[SourceQuality "1"]
[TimeControl "5400+30"]

1. e4 {[%emt 0:00:06]} e5 {[%emt 0:00:08]} 2. Nf3 {[%emt 0:00:04]} Nc6 {[%emt 0:00:05]} 3. Bb5 {[%emt 0:00:04]} Nf6 {[%emt 0:00:10]} 4. d3 {[%emt 0:00:15]} Bc5 {[%emt 0:00:10]} 5. O-O {[%emt 0:00:45]} d6 {[%emt 0:00:22]} 6. c3 {[%emt 0:00:27]} a6 {[%emt 0:00:22]} 7. Ba4 {[%emt 0:00:21]} O-O {[%emt 0:00:28]} 8. h3 {[%emt 0:00:42]} h6 {[%emt 0:00:10]} 9. Re1 {[%emt 0:01:01]} b5 {[%emt 0:01:07]} 10. Bc2 {[%emt 0:00:38]} Re8 {[%emt 0:04:06]} 11. d4 {[%emt 0:01:10]} exd4 {[%emt 0:00:27]} 12. cxd4 {[%emt 0:00:11]} Bb6 {[%emt 0:00:49]} 13. a4 {[%emt 0:03:24]} b4 {[%emt 0:00:46]} 14. b3 {[%emt 0:05:36]} Ne7 {[%emt 0:09:04]} 15. Nbd2 {[%emt 0:02:39]} Ng6 {[%emt 0:03:03]} 16. Nc4 {[%emt 0:00:47]} a5 {[%emt 0:00:44]} 17. Nxb6 {[%emt 0:01:00]} cxb6 {[%emt 0:00:07]} 18. d5 {[%emt 0:01:40]} Nd7 {[%emt 0:01:05]} 19. Nd4 {[%emt 0:01:05]} Nc5 {[%emt 0:03:19]} 20. Nc6 {[%emt 0:09:13]} Qd7 {[%emt 0:01:42]} 21. Qd4 {[%emt 0:03:49]} Ne5 {[%emt 0:06:44]} 22. Bb2 {[%emt 0:01:19]} f6 {[%emt 0:00:16]} 23. Re3 {[%emt 0:03:16]} Bb7 {[%emt 0:13:41]} 24. Nxe5 {[%emt 0:03:37]} dxe5 {[%emt 0:00:56]} 25. Qd2 {[%emt 0:02:42]} Rad8 {[%emt 0:02:19]} 26. Rg3 {[%emt 0:01:00]} Kh8 {[%emt 0:00:24]} 27. f4 {[%emt 0:04:43]} exf4 {[%emt 0:02:03]} 28. Qxf4 {[%emt 0:00:10]} Qd6 {[%emt 0:00:53]} 29. Qg4 {[%emt 0:01:20]} Rd7 {[%emt 0:07:21]} 30. Qg6 {[%emt 0:00:56]} Re5 {[%emt 0:01:44]} 31. Bxe5 {[%emt 0:01:17]} Qxe5 {[%emt 0:00:04]} 32. Rf1 {[%emt 0:00:56]} Re7 {[%emt 0:05:16]} 33. Rf5 {[%emt 0:02:51]} Qd4+ {[%emt 0:00:30]} 34. Kh2 {[%emt 0:00:46]} Qb2 {[%emt 0:04:17]} 35. Rh5 {[%emt 0:01:03]} Qc1 {[%emt 0:06:14]} 36. e5 {[%emt 0:00:47]} Bxd5 {[%emt 0:02:43]} 37. Qh7# {[%emt 0:00:08]} 1-0

[Event "Asian Amateur-ch Women 2022"]
[Site "Muscat"]
[Date "2022.10.02"]
[Round "4.8"]
[White "Al Kalbani, Wadima"]
[Black "Ahoud Eisa Bashkardi"]
[Result "1-0"]
[ECO "C65"]
[WhiteElo "1554"]
[BlackElo "1347"]
[Annotator "NA RC COMBH"]
[PlyCount "167"]
[EventDate "2022.09.29"]
[EventType "swiss"]
[SourceTitle "playchess.com"]
[Source "ChessBase"]
[SourceQuality "1"]
[TimeControl "5400+30"]

1. e4 {[%emt 0:00:02]} e5 {[%emt 0:00:08]} 2. Nf3 {[%emt 0:00:04]} Nc6 {[%emt 0:00:08]} 3. Bb5 {[%emt 0:00:05]} Nf6 {[%emt 0:00:07]} 4. d3 {[%emt 0:00:09]} Bc5 {[%emt 0:00:10]} 5. O-O {[%emt 0:00:14]} Nd4 {[%emt 0:02:29]} 6. Nxd4 {[%emt 0:02:14]} exd4 {[%emt 0:03:02]} 7. Bg5 {[%emt 0:01:26]} Be7 {[%emt 0:01:59]} 8. Bxf6 {[%emt 0:12:46]} Bxf6 {[%emt 0:00:32]} 9. e5 {[%emt 0:00:13]} Be7 {[%emt 0:11:50]} 10. Qg4 {[%emt 0:00:34]} O-O {[%emt 0:02:16]} 11. Qxd4 {[%emt 0:00:16]} d6 {[%emt 0:06:45]} 12. exd6 {[%emt 0:05:23]} Qxd6 {[%emt 0:00:16]} 13. Qxd6 {[%emt 0:00:07]} Bxd6 {[%emt 0:00:07]} 14. Nd2 {[%emt 0:00:41]} c6 {[%emt 0:00:39]} 15. Bc4 {[%emt 0:00:17]} Bf5 {[%emt 0:02:28]} 16. Ne4 {[%emt 0:01:57]} Be5 {[%emt 0:01:59]} 17. Ng3 {[%emt 0:22:46]} Bd7 {[%emt 0:05:24]} 18. d4 {[%emt 0:02:23]} Bc7 {[%emt 0:14:03]} 19. Rfe1 {[%emt 0:02:28]} Rfe8 {[%emt 0:00:22]} 20. c3 {[%emt 0:01:26]} Rxe1+ {[%emt 0:12:25]} 21. Rxe1 {[%emt 0:00:02]} Kf8 {[%emt 0:00:17]} 22. Nf1 {[%emt 0:26:20]} Re8 {[%emt 0:02:39]} 23. Rxe8+ {[%emt 0:00:12]} Kxe8 {[%emt 0:00:05]} 24. Ne3 {[%emt 0:00:07]} f5 {[%emt 0:02:13]} 25. Bd3 {[%emt 0:00:14]} g6 {[%emt 0:01:32]} 26. h3 {[%emt 0:02:14]} Ke7 {[%emt 0:03:22]} 27. Kf1 {[%emt 0:00:09]} Be6 {[%emt 0:00:37]} 28. Bc4 {[%emt 0:01:00]} b5 {[%emt 0:03:13]} 29. Bxe6 {[%emt 0:00:27]} Kxe6 {[%emt 0:00:15]} 30. Ke2 {[%emt 0:00:06]} Bd6 {[%emt 0:03:59]} 31. b3 {[%emt 0:00:13]} a5 {[%emt 0:01:39]} 32. a4 {[%emt 0:00:51]} b4 {[%emt 0:00:20]} 33. c4 {[%emt 0:00:57]} c5 {[%emt 0:01:07]} 34. Kd3 {[%emt 0:07:35]} Kf6 {[%emt 0:05:47]} 35. Nd5+ {[%emt 0:01:25]} Ke6 {[%emt 0:01:15]} 36. Nb6 {[%emt 0:01:52]} Bf8 {[%emt 0:02:10]} 37. d5+ {[%emt 0:03:08]} Kd6 {[%emt 0:03:31]} 38. Nc8+ {[%emt 0:00:28]} Kd7 {[%emt 0:01:44]} 39. Na7 {[%emt 0:00:10]} Bd6 {[%emt 0:00:24]} 40. Nc6 {[%emt 0:00:17]} Bc7 {[%emt 0:01:28]} 41. Ke3 {[%emt 0:00:32]} Ke8 {[%emt 0:00:17]} 42. Kf3 {[%emt 0:04:07]} Kf7 {[%emt 0:00:27]} 43. Ke3 {[%emt 0:00:32]} Ke8 {[%emt 0:00:19]} 44. Na7 {[%emt 0:00:40]} Kd7 {[%emt 0:00:36]} 45. Nc6 {[%emt 0:00:17]} Ke8 {[%emt 0:00:13]} 46. g4 {[%emt 0:01:52]} f4+ {[%emt 0:00:31]} 47. Ke4 {[%emt 0:00:07]} Kf7 {[%emt 0:01:58]} 48. f3 {[%emt 0:00:26]} Kf6 {[%emt 0:01:51]} 49. Na7 {[%emt 0:00:42]} Ke7 {[%emt 0:01:52]} 50. Nb5 {[%emt 0:00:31]} Bb8 {[%emt 0:00:41]} 51. d6+ {[%emt 0:00:14]} Bxd6 {[%emt 0:00:39]} 52. Nxd6 {[%emt 0:00:01]} Kxd6 {[%emt 0:00:13]} 53. Kxf4 {[%emt 0:00:01]} Ke6 {[%emt 0:00:14]} 54. h4 {[%emt 0:01:40]} Kf6 {[%emt 0:01:01]} 55. Ke4 {[%emt 0:00:16]} Ke6 {[%emt 0:00:24]} 56. f4 {[%emt 0:00:05]} h6 {[%emt 0:01:14]} 57. f5+ {[%emt 0:01:16]} gxf5+ {[%emt 0:00:25]} 58. gxf5+ {[%emt 0:00:01]} Kf6 {[%emt 0:00:14]} 59. Kf4 {[%emt 0:00:27]} Kf7 {[%emt 0:00:15]} 60. Ke5 {[%emt 0:00:05]} Ke7 {[%emt 0:00:36]} 61. Kd5 {[%emt 0:01:53]} Kf6 {[%emt 0:00:15]} 62. Kxc5 {[%emt 0:00:07]} Kxf5 {[%emt 0:00:10]} 63. Kd6 {[%emt 0:00:04]} Ke4 {[%emt 0:00:55]} 64. c5 {[%emt 0:00:05]} Kd4 {[%emt 0:00:28]} 65. c6 {[%emt 0:00:06]} Kc3 {[%emt 0:00:03]} 66. c7 {[%emt 0:00:07]} Kxb3 {[%emt 0:00:17]} 67. c8=Q {[%emt 0:00:07]} Kxa4 {[%emt 0:00:14]} 68. Qc4 {[%emt 0:00:20]} Ka3 {[%emt 0:00:14]} 69. Qc1+ {[%emt 0:00:30]} Ka2 {[%emt 0:01:01]} 70. Qc2+ {[%emt 0:00:20]} Ka3 {[%emt 0:00:08]} 71. Qb1 {[%emt 0:01:19]} b3 {[%emt 0:00:18]} 72. Kc5 {[%emt 0:00:08]} b2 {[%emt 0:00:20]} 73. Kc4 {[%emt 0:00:16]} h5 {[%emt 0:00:59]} 74. Kc3 {[%emt 0:00:18]} Ka4 {[%emt 0:00:10]} 75. Qa2+ {[%emt 0:00:07]} Kb5 {[%emt 0:00:14]} 76. Qxb2+ {[%emt 0:00:06]} Kc6 {[%emt 0:00:15]} 77. Kc4 {[%emt 0:00:12]} a4 {[%emt 0:00:11]} 78. Qb5+ {[%emt 0:00:07]} Kd6 {[%emt 0:00:09]} 79. Qxa4 {[%emt 0:00:07]} Kc7 {[%emt 0:00:09]} 80. Qa6 {[%emt 0:00:06]} Kd8 {[%emt 0:00:16]} 81. Qb7 {[%emt 0:00:10]} Ke8 {[%emt 0:00:07]} 82. Kd5 {[%emt 0:00:06]} Kd8 {[%emt 0:00:31]} 83. Kd6 {[%emt 0:00:11]} Ke8 {[%emt 0:00:03]} 84. Qe7# {[%emt 0:00:06]} 1-0

[Event "Asian Amateur-ch Women 2022"]
[Site "Muscat"]
[Date "2022.10.02"]
[Round "4.9"]
[White "Neamah Ali Awadh BaJamel"]
[Black "Khalil, Hanan"]
[Result "0-1"]
[ECO "A54"]
[WhiteElo "1269"]
[BlackElo "1484"]
[Annotator "NA RC COMBH"]
[PlyCount "70"]
[EventDate "2022.09.29"]
[EventType "swiss"]
[SourceTitle "playchess.com"]
[Source "ChessBase"]
[SourceQuality "1"]
[TimeControl "5400+30"]

1. d4 {[%emt 0:00:04]} Nf6 {[%emt 0:00:02]} 2. c4 {[%emt 0:00:27]} d6 {[%emt 0:00:14]} 3. Nc3 {[%emt 0:00:59]} Nbd7 {[%emt 0:00:03]} 4. Nf3 {[%emt 0:00:30]} e5 {[%emt 0:00:05]} 5. dxe5 {[%emt 0:05:28]} dxe5 {[%emt 0:00:04]} 6. Bg5 {[%emt 1:26:02]} c6 {[%emt 0:00:49]} 7. a3 {[%emt 0:00:00]} a5 {[%emt 0:01:20]} 8. Qb3 {[%emt 0:00:00]} Be7 {[%emt 0:04:18]} 9. e4 {[%emt 0:00:00]} O-O {[%emt 0:01:21]} 10. Be2 {[%emt 0:00:00]} Qc7 {[%emt 0:05:28]} 11. O-O {[%emt 0:00:00]} h6 {[%emt 0:01:17]} 12. Bh4 {[%emt 0:00:00]} Nc5 {[%emt 0:05:52]} 13. Qc2 {[%emt 0:00:00]} a4 {[%emt 0:03:05]} 14. h3 {[%emt 0:00:00]} Be6 {[%emt 0:03:34]} 15. Bd1 {[%emt 0:00:00]} Bxc4 {[%emt 0:00:38]} 16. Be2 {[%emt 0:00:00]} Bb3 {[%emt 0:03:02]} 17. Qb1 {[%emt 0:00:00]} Rfd8 {[%emt 0:00:26]} 18. Bd1 {[%emt 0:00:00]} Bxd1 {[%emt 0:10:15]} 19. Bxf6 {[%emt 0:00:00]} Bxf6 {[%emt 0:00:31]} 20. Rxd1 {[%emt 0:00:00]} Nb3 {[%emt 0:00:16]} 21. Ra2 {[%emt 0:00:00]} Rxd1+ {[%emt 0:00:43]} 22. Qxd1 {[%emt 0:00:00]} Rd8 {[%emt 0:00:06]} 23. Qc2 {[%emt 0:00:00]} Qa5 {[%emt 0:00:26]} 24. Nb1 {[%emt 0:00:00]} Nd4 {[%emt 0:09:44]} 25. Qd1 {[%emt 0:00:00]} Nxf3+ {[%emt 0:00:16]} 26. Qxf3 {[%emt 0:00:00]} Qe1+ {[%emt 0:00:04]} 27. Kh2 {[%emt 0:00:00]} Qxb1 {[%emt 0:00:05]} 28. Qc3 {[%emt 0:00:00]} Qxa2 {[%emt 0:00:03]} 29. Qb4 {[%emt 0:00:00]} Qb3 {[%emt 0:00:06]} 30. Qc5 {[%emt 0:00:00]} Qxb2 {[%emt 0:00:20]} 31. Qa7 {[%emt 0:00:00]} Rd2 {[%emt 0:00:31]} 32. Kg1 {[%emt 0:00:00]} Bh4 {[%emt 0:01:42]} 33. Qb8+ {[%emt 0:00:00]} Kh7 {[%emt 0:00:09]} 34. Qc8 {[%emt 0:00:00]} Rxf2 {[%emt 0:00:23]} 35. Kh1 {[%emt 0:00:00]} Bg3 {[%emt 0:00:11]} 0-1

[Event "Asian Amateur-ch Women 2022"]
[Site "Muscat"]
[Date "2022.10.02"]
[Round "5.1"]
[White "Rouda Essa, Alserkal"]
[Black "Nadernia, Niki"]
[Result "1-0"]
[ECO "C07"]
[WhiteElo "1893"]
[BlackElo "1769"]
[Annotator "NA RC COMBH"]
[PlyCount "85"]
[EventDate "2022.09.29"]
[EventType "swiss"]
[SourceTitle "playchess.com"]
[Source "ChessBase"]
[SourceQuality "1"]
[TimeControl "5400+30"]

1. e4 {[%emt 0:00:02]} e6 {[%emt 0:00:19]} 2. d4 {[%emt 0:00:04]} d5 {[%emt 0:00:05]} 3. Nd2 {[%emt 0:00:03]} c5 {[%emt 0:00:07]} 4. exd5 {[%emt 0:00:08]} Qxd5 {[%emt 0:00:07]} 5. Ngf3 {[%emt 0:00:04]} cxd4 {[%emt 0:00:25]} 6. Bc4 {[%emt 0:00:04]} Qd6 {[%emt 0:00:10]} 7. O-O {[%emt 0:00:43]} Nf6 {[%emt 0:00:05]} 8. Nb3 {[%emt 0:00:10]} Nc6 {[%emt 0:00:05]} 9. Nbxd4 {[%emt 0:01:12]} Nxd4 {[%emt 0:00:16]} 10. Nxd4 {[%emt 0:03:13]} Be7 {[%emt 0:09:31]} 11. c3 {[%emt 0:02:39]} O-O {[%emt 0:01:25]} 12. Qe2 {[%emt 0:03:41]} a6 {[%emt 0:05:07]} 13. a4 {[%emt 0:06:42]} e5 {[%emt 0:14:06]} 14. Nc2 {[%emt 0:12:39]} e4 {[%emt 0:13:02]} 15. h3 {[%emt 0:08:09]} Bf5 {[%emt 0:09:47]} 16. Bg5 {[%emt 0:11:59]} Rac8 {[%emt 0:05:10]} 17. Rad1 {[%emt 0:14:56]} Qc7 {[%emt 0:03:12]} 18. Ba2 {[%emt 0:06:47]} Bg6 {[%emt 0:10:59]} 19. Bxf6 {[%emt 0:02:35]} Bxf6 {[%emt 0:00:06]} 20. Ne3 {[%emt 0:00:34]} Qa5 {[%emt 0:01:03]} 21. Bb3 {[%emt 0:07:17]} Qb6 {[%emt 0:15:12]} 22. Ba2 {[%emt 0:01:57]} Qc6 {[%emt 0:03:14]} 23. Bd5 {[%emt 0:02:00]} Qc7 {[%emt 0:01:23]} 24. Nc4 {[%emt 0:03:34]} Kh8 {[%emt 0:01:54]} 25. Nd2 {[%emt 0:02:59]} Rfe8 {[%emt 0:01:53]} 26. Nxe4 {[%emt 0:01:06]} Bxe4 {[%emt 0:00:49]} 27. Bxe4 {[%emt 0:00:08]} Qf4 {[%emt 0:00:47]} 28. Rfe1 {[%emt 0:01:46]} Re5 {[%emt 0:00:42]} 29. Qf3 {[%emt 0:00:29]} Qg5 {[%emt 0:01:35]} 30. Bxb7 {[%emt 0:00:32]} Rce8 {[%emt 0:00:05]} 31. Rxe5 {[%emt 0:01:16]} Qxe5 {[%emt 0:01:15]} 32. Bxa6 {[%emt 0:00:33]} Bd8 {[%emt 0:01:18]} 33. Bb5 {[%emt 0:00:37]} Rg8 {[%emt 0:00:18]} 34. Qd5 {[%emt 0:00:55]} Qf6 {[%emt 0:00:16]} 35. c4 {[%emt 0:00:57]} h6 {[%emt 0:00:31]} 36. Qd4 {[%emt 0:00:37]} Qg5 {[%emt 0:00:44]} 37. b4 {[%emt 0:02:12]} Bf6 {[%emt 0:00:17]} 38. Qe4 {[%emt 0:00:34]} Bc3 {[%emt 0:01:01]} 39. c5 {[%emt 0:00:21]} Qh5 {[%emt 0:00:17]} 40. Rd3 {[%emt 0:01:02]} Bf6 {[%emt 0:00:27]} 41. a5 {[%emt 0:00:48]} Qg5 {[%emt 0:00:08]} 42. f4 {[%emt 0:00:34]} Qh4 {[%emt 0:00:17]} 43. a6 {[%emt 0:00:32]} 1-0

[Event "Asian Amateur-ch Women 2022"]
[Site "Muscat"]
[Date "2022.10.02"]
[Round "5.2"]
[White "Wijesuriya, G P Y"]
[Black "Sawan, Eman"]
[Result "1-0"]
[ECO "B25"]
[WhiteElo "1564"]
[BlackElo "1840"]
[Annotator "NA RC COMBH"]
[PlyCount "57"]
[EventDate "2022.09.29"]
[EventType "swiss"]
[SourceTitle "playchess.com"]
[Source "ChessBase"]
[SourceQuality "1"]
[TimeControl "5400+30"]

1. e4 {[%emt 0:00:18]} c5 {[%emt 0:00:05]} 2. Nc3 {[%emt 0:00:09]} a6 {[%emt 0:00:25]} 3. g3 {[%emt 0:00:06]} d6 {[%emt 0:00:30]} 4. Bg2 {[%emt 0:00:06]} Nf6 {[%emt 0:00:58]} 5. d3 {[%emt 0:00:06]} g6 {[%emt 0:00:56]} 6. f4 {[%emt 0:00:07]} Bg7 {[%emt 0:00:35]} 7. Nf3 {[%emt 0:00:05]} Nc6 {[%emt 0:00:48]} 8. O-O {[%emt 0:00:09]} O-O {[%emt 0:02:58]} 9. h3 {[%emt 0:00:46]} Qc7 {[%emt 0:04:05]} 10. Be3 {[%emt 0:04:19]} e5 {[%emt 0:06:58]} 11. Nd5 {[%emt 0:04:26]} Nxd5 {[%emt 0:00:35]} 12. exd5 {[%emt 0:00:09]} exf4 {[%emt 0:07:11]} 13. Bxf4 {[%emt 0:03:31]} Ne7 {[%emt 0:01:45]} 14. Ng5 {[%emt 0:02:16]} Bxb2 {[%emt 0:08:34]} 15. Ne4 {[%emt 0:02:34]} Rd8 {[%emt 0:06:23]} 16. Bg5 {[%emt 0:12:38]} Bf5 {[%emt 0:08:20]} 17. Nf6+ {[%emt 0:02:12]} Kg7 {[%emt 0:01:56]} 18. Qd2 {[%emt 0:08:43]} Bd4+ {[%emt 0:06:19]} 19. Kh1 {[%emt 0:02:07]} c4 {[%emt 0:14:00]} 20. Qf4 {[%emt 0:08:46]} Be5 {[%emt 0:11:37]} 21. Qh4 {[%emt 0:00:11]} h5 {[%emt 0:00:28]} 22. d4 {[%emt 0:03:24]} Bxc2 {[%emt 0:05:11]} 23. dxe5 {[%emt 0:02:45]} Nf5 {[%emt 0:00:45]} 24. Rxf5 {[%emt 0:01:25]} Bxf5 {[%emt 0:00:15]} 25. Nxh5+ {[%emt 0:08:34]} Kf8 {[%emt 0:03:43]} 26. Bh6+ {[%emt 0:02:14]} Ke8 {[%emt 0:00:53]} 27. Nf6+ {[%emt 0:00:29]} Ke7 {[%emt 0:00:29]} 28. exd6+ {[%emt 0:00:07]} Rxd6 {[%emt 0:00:53]} 29. Re1+ {[%emt 0:01:07]} 1-0

[Event "Asian Amateur-ch Women 2022"]
[Site "Muscat"]
[Date "2022.10.02"]
[Round "5.3"]
[White "Khalil, Hanan"]
[Black "Al-Khelaifi, Salama"]
[Result "1-0"]
[ECO "B01"]
[WhiteElo "1484"]
[BlackElo "1798"]
[Annotator "NA RC COMBH"]
[PlyCount "107"]
[EventDate "2022.09.29"]
[EventType "swiss"]
[SourceTitle "playchess.com"]
[Source "ChessBase"]
[SourceQuality "1"]
[TimeControl "5400+30"]

1. e4 {[%emt 0:00:02]} d5 {[%emt 0:00:48]} 2. exd5 {[%emt 0:00:21]} Qxd5 {[%emt 0:00:24]} 3. Nc3 {[%emt 0:00:10]} Qd6 {[%emt 0:00:07]} 4. Bc4 {[%emt 0:00:42]} Nf6 {[%emt 0:00:29]} 5. d3 {[%emt 0:00:57]} a6 {[%emt 0:00:07]} 6. Nge2 {[%emt 0:01:15]} b5 {[%emt 0:00:38]} 7. Bb3 {[%emt 0:01:33]} Bb7 {[%emt 0:01:04]} 8. f3 {[%emt 0:08:33]} Qb6 {[%emt 0:03:10]} 9. Bf4 {[%emt 0:16:48]} e6 {[%emt 0:12:15]} 10. Qd2 {[%emt 0:09:13]} Be7 {[%emt 0:08:17]} 11. Be3 {[%emt 0:02:04]} c5 {[%emt 0:03:57]} 12. a4 {[%emt 0:08:55]} O-O {[%emt 0:04:55]} 13. O-O {[%emt 0:03:24]} Rd8 {[%emt 0:03:29]} 14. Ng3 {[%emt 0:03:03]} Nbd7 {[%emt 0:15:49]} 15. Nce4 {[%emt 0:06:18]} Qc6 {[%emt 0:06:37]} 16. Qe2 {[%emt 0:09:46]} Rac8 {[%emt 0:08:05]} 17. a5 {[%emt 0:02:28]} c4 {[%emt 0:03:51]} 18. dxc4 {[%emt 0:01:11]} Nc5 {[%emt 0:03:33]} 19. cxb5 {[%emt 0:01:33]} axb5 {[%emt 0:00:18]} 20. Nxc5 {[%emt 0:02:03]} Bxc5 {[%emt 0:00:07]} 21. Bxc5 {[%emt 0:00:23]} Qxc5+ {[%emt 0:00:06]} 22. Kh1 {[%emt 0:01:11]} Nd5 {[%emt 0:02:46]} 23. Ne4 {[%emt 0:01:40]} Qc6 {[%emt 0:05:11]} 24. Rfd1 {[%emt 0:07:26]} Ba6 {[%emt 0:04:08]} 25. Qd2 {[%emt 0:01:23]} h6 {[%emt 0:00:28]} 26. h3 {[%emt 0:02:49]} Qc7 {[%emt 0:00:58]} 27. Qd4 {[%emt 0:05:07]} Bb7 {[%emt 0:02:38]} 28. a6 {[%emt 0:02:44]} Ba8 {[%emt 0:00:12]} 29. Bxd5 {[%emt 0:00:11]} Bxd5 {[%emt 0:03:39]} 30. Qb4 {[%emt 0:01:43]} Qc6 {[%emt 0:01:09]} 31. c3 {[%emt 0:00:28]} Ra8 {[%emt 0:00:10]} 32. a7 {[%emt 0:00:27]} Rd7 {[%emt 0:02:38]} 33. Qd4 {[%emt 0:00:12]} Rc7 {[%emt 0:01:05]} 34. Ra3 {[%emt 0:00:42]} Qb7 {[%emt 0:01:13]} 35. Rda1 {[%emt 0:00:15]} Rc4 {[%emt 0:00:36]} 36. Nd6 {[%emt 0:00:53]} Qc6 {[%emt 0:00:19]} 37. Nxc4 {[%emt 0:00:04]} bxc4 {[%emt 0:00:03]} 38. Ra6 {[%emt 0:00:06]} Qc7 {[%emt 0:00:20]} 39. Qb6 {[%emt 0:00:55]} Qf4 {[%emt 0:00:15]} 40. Qf2 {[%emt 0:00:19]} g5 {[%emt 0:00:29]} 41. Kg1 {[%emt 0:00:30]} h5 {[%emt 0:00:07]} 42. Rb6 {[%emt 0:00:45]} Qc7 {[%emt 0:00:13]} 43. Rb5 {[%emt 0:00:35]} Qf4 {[%emt 0:00:39]} 44. Rba5 {[%emt 0:00:39]} f5 {[%emt 0:00:22]} 45. Re1 {[%emt 0:00:36]} Qc7 {[%emt 0:00:25]} 46. Raa1 {[%emt 0:00:22]} Qb7 {[%emt 0:00:18]} 47. Qe3 {[%emt 0:00:40]} Qg7 {[%emt 0:00:08]} 48. Qe5 {[%emt 0:00:09]} Rxa7 {[%emt 0:00:37]} 49. Qb8+ {[%emt 0:00:10]} Qf8 {[%emt 0:00:13]} 50. Qxf8+ {[%emt 0:00:05]} Kxf8 {[%emt 0:00:01]} 51. Rxa7 {[%emt 0:00:01]} h4 {[%emt 0:00:04]} 52. Rc7 {[%emt 0:00:23]} f4 {[%emt 0:00:06]} 53. Ra1 {[%emt 0:00:09]} Ke8 {[%emt 0:00:12]} 54. Raa7 {[%emt 0:00:04]} 1-0

[Event "Asian Amateur-ch Women 2022"]
[Site "Muscat"]
[Date "2022.10.02"]
[Round "5.4"]
[White "Al-Khelaifi, Aisha"]
[Black "Amulya Guruprasad"]
[Result "0-1"]
[ECO "B35"]
[WhiteElo "1678"]
[BlackElo "1278"]
[Annotator "NA RC COMBH"]
[PlyCount "78"]
[EventDate "2022.09.29"]
[EventType "swiss"]
[SourceTitle "playchess.com"]
[Source "ChessBase"]
[SourceQuality "1"]
[TimeControl "5400+30"]

1. e4 {[%emt 0:00:03]} c5 {[%emt 0:00:06]} 2. Nf3 {[%emt 0:00:20]} g6 {[%emt 0:00:06]} 3. Nc3 {[%emt 0:01:17]} Bg7 {[%emt 0:00:21]} 4. d4 {[%emt 0:03:23]} cxd4 {[%emt 0:00:07]} 5. Nxd4 {[%emt 0:00:04]} Nc6 {[%emt 0:00:05]} 6. Be3 {[%emt 0:05:08]} Nf6 {[%emt 0:23:09]} 7. Bc4 {[%emt 0:05:38]} Qc7 {[%emt 0:18:01]} 8. Ndb5 {[%emt 0:33:55]} Qa5 {[%emt 0:07:37]} 9. O-O {[%emt 0:04:17]} a6 {[%emt 0:00:45]} 10. Nd4 {[%emt 0:02:11]} O-O {[%emt 0:00:23]} 11. a3 {[%emt 0:15:32]} Ng4 {[%emt 0:11:35]} 12. Nxc6 {[%emt 0:04:40]} dxc6 {[%emt 0:00:08]} 13. Bd2 {[%emt 0:01:21]} Qc7 {[%emt 0:01:20]} 14. g3 {[%emt 0:01:56]} h5 {[%emt 0:03:45]} 15. Qe2 {[%emt 0:03:10]} b5 {[%emt 0:15:08]} 16. Bb3 {[%emt 0:02:02]} Bd7 {[%emt 0:05:48]} 17. Nd1 {[%emt 0:03:28]} Rad8 {[%emt 0:03:35]} 18. Bg5 {[%emt 0:02:50]} Bc8 {[%emt 0:00:41]} 19. c3 {[%emt 0:00:49]} c5 {[%emt 0:00:25]} 20. Ne3 {[%emt 0:00:31]} c4 {[%emt 0:00:34]} 21. Bc2 {[%emt 0:01:06]} f6 {[%emt 0:01:04]} 22. Nxg4 {[%emt 0:03:04]} Bxg4 {[%emt 0:00:05]} 23. f3 {[%emt 0:00:41]} Bh3 {[%emt 0:00:14]} 24. Be3 {[%emt 0:00:56]} Bxf1 {[%emt 0:00:35]} 25. Rxf1 {[%emt 0:04:38]} Rd7 {[%emt 0:00:33]} 26. f4 {[%emt 0:00:00]} Kf7 {[%emt 0:02:08]} 27. e5 {[%emt 0:00:00]} e6 {[%emt 0:02:47]} 28. f5 {[%emt 0:00:00]} Qxe5 {[%emt 0:00:11]} 29. fxg6+ {[%emt 0:00:11]} Kg8 {[%emt 0:00:05]} 30. Qf3 {[%emt 0:00:49]} Rc8 {[%emt 0:02:52]} 31. Bd4 {[%emt 0:00:34]} Rxd4 {[%emt 0:00:05]} 32. cxd4 {[%emt 0:00:21]} Qxd4+ {[%emt 0:00:02]} 33. Kh1 {[%emt 0:00:58]} Qd5 {[%emt 0:00:09]} 34. Qxd5 {[%emt 0:00:04]} exd5 {[%emt 0:00:02]} 35. Rf5 {[%emt 0:00:09]} Rd8 {[%emt 0:00:08]} 36. Rxh5 {[%emt 0:00:06]} d4 {[%emt 0:00:03]} 37. Kg2 {[%emt 0:00:26]} d3 {[%emt 0:00:04]} 38. Bd1 {[%emt 0:00:21]} Bf8 {[%emt 0:00:07]} 39. Rc5 {[%emt 0:00:43]} Bxc5 {[%emt 0:00:04]} 0-1

[Event "Asian Amateur-ch Women 2022"]
[Site "Muscat"]
[Date "2022.10.02"]
[Round "5.5"]
[White "Al Ghafri, Alanoud"]
[Black "Al Mansouri, Moza"]
[Result "0-1"]
[ECO "B70"]
[WhiteElo "1275"]
[BlackElo "1610"]
[Annotator "NA RC COMBH"]
[PlyCount "70"]
[EventDate "2022.09.29"]
[EventType "swiss"]
[SourceTitle "playchess.com"]
[Source "ChessBase"]
[SourceQuality "1"]
[TimeControl "5400+30"]

1. e4 {[%emt 0:00:30]} c5 {[%emt 0:00:26]} 2. Nf3 {[%emt 0:00:08]} d6 {[%emt 0:00:09]} 3. d4 {[%emt 0:00:08]} cxd4 {[%emt 0:00:05]} 4. Nxd4 {[%emt 0:00:08]} Nf6 {[%emt 0:00:08]} 5. Nc3 {[%emt 0:00:08]} g6 {[%emt 0:00:06]} 6. g3 {[%emt 0:01:04]} Bg7 {[%emt 0:00:11]} 7. Bg2 {[%emt 0:00:33]} O-O {[%emt 0:01:29]} 8. Be3 {[%emt 0:00:25]} a6 {[%emt 0:02:17]} 9. O-O {[%emt 0:00:57]} Ng4 {[%emt 0:01:53]} 10. Bc1 {[%emt 0:08:41]} Nc6 {[%emt 0:03:05]} 11. Nde2 {[%emt 0:06:28]} e5 {[%emt 0:11:04]} 12. Nd5 {[%emt 0:02:55]} Nd4 {[%emt 0:07:19]} 13. Nxd4 {[%emt 0:04:54]} exd4 {[%emt 0:00:11]} 14. h3 {[%emt 0:00:09]} Ne5 {[%emt 0:00:59]} 15. Bf4 {[%emt 0:03:06]} Nc4 {[%emt 0:06:12]} 16. b3 {[%emt 0:04:00]} Na3 {[%emt 0:03:21]} 17. Rc1 {[%emt 0:03:20]} Be6 {[%emt 0:01:16]} 18. c3 {[%emt 0:01:56]} Bxd5 {[%emt 0:00:20]} 19. exd5 {[%emt 0:02:25]} dxc3 {[%emt 0:00:14]} 20. Be3 {[%emt 0:02:16]} c2 {[%emt 0:04:55]} 21. Qd3 {[%emt 0:02:02]} Bb2 {[%emt 0:01:21]} 22. Rce1 {[%emt 0:00:08]} Rc8 {[%emt 0:01:06]} 23. Bc1 {[%emt 0:00:23]} Qf6 {[%emt 0:02:35]} 24. b4 {[%emt 0:07:49]} Bxc1 {[%emt 0:02:08]} 25. Rxc1 {[%emt 0:00:06]} Qb2 {[%emt 0:01:57]} 26. Qb3 {[%emt 0:03:10]} Qxb3 {[%emt 0:00:35]} 27. axb3 {[%emt 0:00:05]} Rc3 {[%emt 0:00:31]} 28. h4 {[%emt 0:08:46]} Rxb3 {[%emt 0:03:58]} 29. Be4 {[%emt 0:00:16]} Rc8 {[%emt 0:00:25]} 30. g4 {[%emt 0:04:31]} Rxb4 {[%emt 0:00:53]} 31. f3 {[%emt 0:00:53]} Rbc4 {[%emt 0:02:02]} 32. Rf2 {[%emt 0:06:37]} b5 {[%emt 0:00:30]} 33. Re2 {[%emt 0:07:23]} b4 {[%emt 0:01:56]} 34. Re3 {[%emt 0:00:23]} Rc3 {[%emt 0:00:34]} 35. Kf2 {[%emt 0:02:50]} b3 {[%emt 0:00:15]} 0-1